fUSD/lending_fUSD_20241220
["ID","MTS","AMOUNT","RATE_DAILY","PERIOD"]
[346066813,1734688242870,-324.686543,0.00013,2]
[346066814,1734688242884,-13880.54347025,0.00013,2]
[346066815,1734688242908,-2559.20220271,0.00013,2]
[346066816,1734688242946,-902.20116836,0.00013,2]
[346066817,1734688243181,-384.8,0.00013,2]
[346066818,1734688243269,-8317.83552395,0.00013,2]
[346066819,1734688243281,-38627.51525435,0.00013,2]
[346066820,1734688243292,-306.46387973,0.00013,2]
[346066827,1734688245595,-265.24848788,0.000129,2]
[346066828,1734688245605,-10135.75833845,0.00013,2]
[346066830,1734688245633,-1668.65636,0.00013,2]
[346066831,1734688245670,-65908.59365776,0.00013,2]
[346066832,1734688246007,-540.12499263,0.00013,2]
[346066833,1734688246018,-13444.53837763,0.00013,2]
[346066834,1734688246181,-5701.4188,0.00013,2]
[346066835,1734688246193,-961.47627215,0.00013,2]
[346066836,1734688246204,-2547.82133705,0.00013,2]
[346066837,1734688246225,-2496.61865781,0.00013,2]
[346066844,1734688656003,166.51,9.898e-05,2]
[346066845,1734688663035,150.85,0.00016658,30]
[346066846,1734688663378,150.85,0.00020434,30]
[346066847,1734688690232,220.34,9.897e-05,2]
[346066853,1734688785584,500.0,0.000225,30]
[346066857,1734688802913,150.0,9.897e-05,2]
[346066858,1734688803108,293.59363695,9.897e-05,2]
[346066859,1734688879099,1852.42,0.00012049,2]
[346066860,1734688907000,2405.19,0.00012087,2]
[346066861,1734688939387,200.0,0.00012049,2]
[346066865,1734688974914,1000.0,0.00012054,2]
[346066867,1734689011632,190.6,0.00010137,2]
[346066868,1734689025004,167.27,0.0001199,2]
[346066869,1734689060128,1373.18,9.965e-05,2]
[346066870,1734689080973,15160.79770717,0.00012027,2]
[346066871,1734689095416,250.0,0.00011863,2]
[346066872,1734689162954,4277.44,0.00011907,2]
[346066873,1734689190902,294.81,0.00011949,2]
[346066874,1734689191135,294.81,0.00011953,2]
[346066875,1734689191328,294.81,0.00011956,2]
[346066876,1734689191542,294.81,0.00011959,2]
[346066877,1734689191755,294.81,0.00011962,2]
[346066878,1734689192136,294.81,0.00011965,2]
[346066879,1734689192338,294.81,0.00011968,2]
[346066880,1734689192743,294.81,0.00011971,2]
[346066881,1734689193135,294.81,0.00011975,2]
[346066882,1734689193681,294.81,0.00011978,2]
[346066883,1734689193756,294.81,0.00011981,2]
[346066884,1734689194132,294.81,0.00011984,2]
[346066885,1734689194336,294.81,0.00011987,2]
[346066886,1734689194529,294.81,0.0001199,2]
[346066887,1734689194921,294.81,0.00011993,2]
[346066888,1734689195123,294.81,0.00011997,2]
[346066889,1734689195468,294.81,0.00012,2]
[346066890,1734689195682,294.81,0.00012003,2]
[346066891,1734689196069,294.81,0.00012006,2]
[346066892,1734689196465,294.81,0.00012009,2]
[346066893,1734689249960,168.17,0.00012038,2]
[346066894,1734689284499,205.79,0.00011809,2]
[346066895,1734689292721,2171.36,0.00011809,2]
[346066896,1734689378726,200.0,0.00011844,2]
[346066904,1734689403848,250.0,0.000119,2]
[346066905,1734689411761,1108.48,0.00011869,2]
[346066906,1734689411784,5326.96,0.00011869,2]
[346066927,1734689432090,-417.38749484,0.00012128,2]
[346066928,1734689432102,-177.38945818,0.00012128,2]
[346066929,1734689432113,-1295.44,0.00012151,2]
[346066930,1734689432124,-177.38945818,0.00012226,2]
[346066931,1734689432134,-1373.18,0.00012228,2]
[346066932,1734689432144,-23900.0,0.00012327,2]
[346066933,1734689432154,-3005.6,0.00012329,2]
[346066934,1734689432164,-417.38749482,0.00012395,2]
[346066935,1734689432173,-2624.45,0.00012475,2]
[346066936,1734689432183,-2440.82,0.00012563,2]
[346066937,1734689432193,-330.6,0.00012563,3]
[346066938,1734689432208,-3000.0,0.000126,4]
[346066939,1734689432373,-380.22878943,0.00012609,2]
[346066940,1734689432385,-8361.0,0.00012614,2]
[346066941,1734689432394,-201.74,0.00012646,2]
[346066942,1734689432404,-417.38749482,0.00012661,2]
[346066943,1734689432413,-155.54,0.00012681,2]
[346066944,1734689432423,-300.0,0.00012691,2]
[346066945,1734689432433,-3524.45980973,0.000127,4]
[346066946,1734689432445,-473.13244762,0.000127,4]
[346066947,1734689432461,-745.6524641,0.000127,4]
[346066948,1734689432472,-475.22081464,0.000127,4]
[346066949,1734689432484,-881.53446391,0.000127,4]
[346066950,1734689432494,-179.7854,0.000128,2]
[346066951,1734689432503,-9100.0,0.000128,4]
[346066952,1734689432513,-438.68012609,0.0001287,2]
[346066953,1734689432525,-676.8601278,0.0001287,2]
[346066954,1734689432538,-834.09101718,0.0001287,2]
[346066955,1734689432559,-46.12372893,0.0001287,2]
[346066956,1734689432569,-165.415,0.0001287,2]
[346066957,1734689432578,-170.53598794,0.0001289,2]
[346066958,1734689432588,-513.74033709,0.000129,2]
[346066959,1734689432599,-273.6990011,0.000129,2]
[346066995,1734689437840,-212.56066181,0.000129,2]
[346066997,1734689437851,-1000.0,0.000129,2]
[346066999,1734689437860,-1000.0,0.000129,2]
[346067001,1734689437869,-5580.49012838,0.000129,2]
[346067003,1734689437881,-8490.05316041,0.000129,2]
[346067005,1734689437893,-5547.74016914,0.000129,2]
[346067008,1734689437908,-920.0,0.000129,2]
[346067019,1734689438036,-7237.2251909,0.000129,2]
[346067022,1734689438049,-11873.82782395,0.000129,2]
[346067024,1734689438060,-41912.37409462,0.000129,2]
[346067038,1734689438194,-34470.0,0.000129,2]
[346067040,1734689438210,-396.34001336,0.000129,2]
[346067043,1734689438221,-1899.07255352,0.000129,2]
[346067044,1734689438234,-6333.63571276,0.000129,2]
[346067045,1734689438249,-393.69097478,0.000129,2]
[346067046,1734689438261,-1893.96495137,0.000129,2]
[346067047,1734689438317,-7830.60179458,0.000129,2]
[346067048,1734689438329,-1220.54951829,0.000129,2]
[346067049,1734689438342,-8008.41651394,0.000129,2]
[346067050,1734689438351,-691.04808883,0.000129,4]
[346067051,1734689438363,-1764.40827068,0.000129,4]
[346067052,1734689438375,-1994.90716133,0.000129,4]
[346067053,1734689438386,-2197.49234309,0.000129,4]
[346067054,1734689438588,-4091.80483255,0.000129,4]
[346067055,1734689438599,-1214.20461484,0.000129,4]
[346067056,1734689438611,-246.13468868,0.000129,4]
[346067057,1734689438621,-511.13889382,0.00012973,2]
[346067058,1734689438630,-251.8545375,0.00012973,2]
[346067068,1734689440177,-155.01294303,0.00012973,2]
[346067069,1734689440186,-105.98705697,0.00012973,2]
[346067070,1734689440197,-227.83115092,0.00012973,2]
[346067071,1734689440209,-500.0,0.00012973,2]
[346067072,1734689440218,-160.02824121,0.00012973,2]
[346067073,1734689440227,-500.0,0.00012973,2]
[346067074,1734689440370,-2069.13849566,0.0001299,2]
[346067075,1734689440388,-2477.12432777,0.0001299,2]
[346067076,1734689440399,-255.05851,0.0001299,2]
[346067077,1734689440426,-2249.7,0.0001299,2]
[346067078,1734689440445,-324.22562728,0.0001299,2]
[346067079,1734689440460,-306.62104852,0.0001299,2]
[346067080,1734689440472,-1904.5997448,0.0001299,2]
[346067142,1734689443162,-1305.3891278,0.0001299,2]
[346067143,1734689443173,-601.8,0.0001299,2]
[346067144,1734689443184,-4411.152,0.0001299,2]
[346067145,1734689443199,-500.0,0.0001299,2]
[346067146,1734689443283,-1273.800002,0.0001299,2]
[346067147,1734689443298,-1548.52,0.0001299,2]
[346067148,1734689443309,-1908.03071242,0.0001299,2]
[346067149,1734689443382,-949.10442,0.0001299,2]
[346067150,1734689443393,-314.73447865,0.0001299,2]
[346067151,1734689443560,-407.55327826,0.0001299,2]
[346067180,1734689445972,-22742.17853234,0.0001299,2]
[346067181,1734689445982,-189.53439018,0.0001299,2]
[346067182,1734689445992,-275.30302261,0.00012999,2]
[346067183,1734689446002,-478.4349728,0.00012999,2]
[346067184,1734689446012,-500.0,0.00012999,2]
[346067185,1734689446021,-500.0,0.00012999,2]
[346067186,1734689446031,-500.0,0.00012999,2]
[346067187,1734689446040,-500.0,0.00012999,2]
[346067188,1734689446050,-174.80730064,0.00012999,2]
[346067189,1734689446059,-268.49472847,0.00012999,2]
[346067190,1734689446069,-171.73755645,0.00012999,2]
[346067191,1734689446078,-500.0,0.00012999,2]
[346067192,1734689446088,-193.80111304,0.00012999,2]
[346067193,1734689446099,-500.0,0.00012999,2]
[346067194,1734689446108,-13005.70838347,0.00013,2]
[346067195,1734689446120,-509.40146692,0.00013,2]
[346067196,1734689446131,-1074.99997,0.00013,2]
[346067197,1734689446143,-2508.75625,0.00013,2]
[346067198,1734689446154,-4879.875,0.00013,2]
[346067199,1734689446169,-999.61677767,0.00013,2]
[346067200,1734689446180,-648.56010815,0.00013,2]
[346067201,1734689446347,-51487.78270877,0.00013,2]
[346067202,1734689446495,-822.00016,0.00013,2]
[346067207,1734689447080,-5588.49142255,0.00013,2]
[346067208,1734689447104,-163059.9999995,0.00013,2]
[346067209,1734689447179,-1244.20451589,0.00013,2]
[346067210,1734689447191,-501.18462326,0.00013,2]
[346067211,1734689520687,2000.0,0.00022493,30]
[346067212,1734689520788,2000.0,0.00022493,30]
[346067213,1734689521711,2000.0,0.00022493,30]
[346067214,1734689523554,2000.0,0.00022493,30]
[346067215,1734689523985,2000.0,0.00022493,30]
[346067216,1734689524335,2000.0,0.00022493,30]
[346067217,1734689525640,2000.0,0.00022493,30]
[346067218,1734689526041,2000.0,0.00022493,30]
[346067219,1734689526720,2000.0,0.00022493,30]
[346067220,1734689527116,2000.0,0.00022493,30]
[346067221,1734689545820,154.23,0.00016658,30]
[346067222,1734689546434,154.23,0.00020434,30]
[346067223,1734689587207,1000.0,0.00022493,30]
[346067224,1734689587630,1000.0,0.00022493,30]
[346067225,1734689588069,1000.0,0.00022493,30]
[346067226,1734689588583,1000.0,0.00022493,30]
[346067227,1734689589010,1000.0,0.00022493,30]
[346067228,1734689591143,1000.0,0.00022493,30]
[346067229,1734689591544,1000.0,0.00022493,30]
[346067230,1734689591975,1000.0,0.00022493,30]
[346067231,1734689592898,2000.0,0.000235,120]
[346067232,1734689746343,10000.0,0.000225,30]
[346067237,1734690060757,163.23,0.00010137,2]
[346067239,1734690116584,-47951.0,0.00012239,2]
[346067240,1734690116604,-191.67798,0.00012288,2]
[346067241,1734690116629,-513.247,0.0001235,2]
[346067242,1734690116650,-1261.11,0.00012416,2]
[346067243,1734690116672,-300.0,0.000127,4]
[346067244,1734690116692,-428.73991121,0.00012733,2]
[346067245,1734690116713,-700.0,0.000128,4]
[346067246,1734690116734,-300.0,0.00012899,2]
[346067247,1734690116753,-266.75794405,0.000129,2]
[346067248,1734690116774,-9070.82957933,0.000129,2]
[346067249,1734690116794,-8983.30973048,0.000129,2]
[346067250,1734690116815,-1100.0,0.000129,4]
[346067251,1734690116838,-189.53439018,0.0001299,2]
[346067252,1734690116857,-500.0,0.00012999,2]
[346067253,1734690116880,-5765.1900354,0.00012999,2]
[346067254,1734690118765,170.53598793,0.000129,2]
[346067255,1734690123112,500.0,0.00012973,2]
[346067269,1734690134955,-710000.0,0.00013,2]
[346067281,1734690326243,5085.44832154,0.000235,120]
[346067488,1734690406530,154.23,0.00016658,30]
[346067489,1734690406923,154.23,0.00021121,30]
[346067714,1734690436263,-22183.535927,0.00012288,2]
[346067716,1734690436289,-511.062,0.0001235,2]
[346067718,1734690436313,-4404.0,0.00012363,2]
[346067721,1734690436341,-1800.0,0.000126,4]
[346067723,1734690436366,-3600.0,0.000127,4]
[346067725,1734690436390,-5500.0,0.000128,4]
[346067727,1734690436414,-3000.0,0.0001287,2]
[346067729,1734690436437,-8243.80533645,0.000129,2]
[346067731,1734690436460,-170.53598793,0.000129,2]
[346067733,1734690436483,-1535.4696,0.000129,2]
[346067735,1734690436510,-7300.0,0.000129,4]
[346067737,1734690436533,-500.0,0.00012999,2]
[346067739,1734690436557,-502.24163111,0.00012999,2]
[346067741,1734690436581,-500.0,0.00012999,2]
[346067743,1734690436605,-453.84689133,0.00012999,2]
[346067745,1734690436628,-155.16353725,0.00012999,2]
[346067747,1734690436653,-1693561.52818763,0.00013,2]
[346067749,1734690436677,-450.0,0.00013,2]
[346067751,1734690436701,-1243838.53913645,0.00013,2]
[346068910,1734690472286,2827.04106618,0.00013,2]
[346069169,1734690479134,111726.32160206,0.00013,2]
[346069366,1734690484277,3000.0,0.00013,2]
[346069619,1734690527074,3000.0,0.00013,2]
[346069620,1734690569926,3000.0,0.00013,2]
[346069622,1734690587165,428.73991121,0.00012669,2]
[346069623,1734690612674,3000.0,0.00013,2]
[346069665,1734690632173,-500.0,0.00013136,2]
[346069666,1734690632183,-385.51999,0.00013273,2]
[346069668,1734690632195,-114.48001,0.00013273,2]
[346069670,1734690632205,-205.79,0.00013286,2]
[346069672,1734690632214,-426.55208386,0.0001341,2]
[346069673,1734690632225,-73.44791614,0.0001341,2]
[346069674,1734690632235,-168.17,0.00013543,2]
[346069675,1734690632244,-500.0,0.00013547,2]
[346069676,1734690632254,-500.0,0.00013684,2]
[346069677,1734690632263,-240.41,0.00013699,2]
[346069678,1734690632272,-462.74584962,0.00013821,2]
[346069679,1734690632282,-1513.09807037,0.00014014,2]
[346069680,1734690632293,-315.56130515,0.00014014,2]
[346069681,1734690635936,-10053.14062448,0.00014014,2]
[346069682,1734690635947,-250.0,0.00014069,2]
[346069683,1734690635957,-9302.45,0.00014182,2]
[346069684,1734690635969,-1035.36,0.00014281,2]
[346069685,1734690635979,-4177.53,0.00014321,2]
[346069686,1734690635988,-200.0,0.00014347,2]
[346069687,1734690635997,-1150.31,0.00014363,2]
[346069688,1734690636007,-200.0,0.00014394,2]
[346069689,1734690636016,-2618.06,0.00014415,2]
[346069690,1734690636025,-500.0,0.00014425,2]
[346069691,1734690636035,-2783.96,0.00014431,2]
[346069692,1734690636044,-1852.42,0.00014444,2]
[346069693,1734690636190,-23900.0,0.00014463,2]
[346069694,1734690636209,-250.0,0.00014467,2]
[346069695,1734690636218,-1138.9,0.00014467,2]
[346069696,1734690636227,-166.94,0.00014537,2]
[346069697,1734690636237,-167.27,0.00014537,2]
[346069698,1734690636247,-156.79,0.00014649,2]
[346069699,1734690636256,-1261.11,0.0001468,2]
[346069700,1734690636265,-1000.0,0.00014693,2]
[346069701,1734690636274,-1908.18,0.00014718,2]
[346069702,1734690636283,-156.79,0.00014722,2]
[346069703,1734690636293,-205.79,0.00014762,2]
[346069704,1734690636302,-1921.13,0.00014767,2]
[346069705,1734690636311,-250.0,0.00014829,2]
[346069706,1734690636319,-325.77,0.0001485,2]
[346069707,1734690636328,-266.75794402,0.00014867,2]
[346069708,1734690636337,-159.47,0.00014902,2]
[346069709,1734690636347,-500.0,0.00014916,2]
[346069710,1734690636356,-300.0,0.00014945,2]
[346069712,1734690636365,-150.0,0.0001495,5]
[346069714,1734690636375,-150.0,0.0001495,5]
[346069716,1734690636384,-500.0,0.00015,2]
[346069718,1734690636393,-168.17,0.00015047,2]
[346069720,1734690636406,-480.35,0.00015176,2]
[346069721,1734690636415,-500.0,0.00015283,3]
[346069723,1734690636425,-250.0,0.00015417,2]
[346069725,1734690636434,-1284.55,0.00015459,2]
[346069726,1734690636443,-1921.13,0.00015505,2]
[346069727,1734690636453,-5887.01117465,0.000157,2]
[346069728,1734690636462,-166.94,0.00015737,2]
[346069729,1734690636471,-528.01,0.00015836,14]
[346069730,1734690636480,-300.0,0.00015838,2]
[346069731,1734690636490,-1366.0,0.00015872,2]
[346069732,1734690636499,-1035.36,0.00016066,2]
[346069733,1734690636508,-205.79,0.00016238,2]
[346069734,1734690636517,-1921.13,0.00016244,2]
[346069735,1734690636527,-1000.0,0.00016529,2]
[346069736,1734690636536,-168.17,0.00016552,2]
[346069737,1734690636545,-186.68,0.00016712,2]
[346069738,1734690636554,-5227.73942421,0.00016781,7]
[346069739,1734690636563,-487.3573567,0.00016781,7]
[346069740,1734690636573,-190.6,0.00016813,2]
[346069741,1734690636583,-266.75794402,0.00016833,2]
[346069742,1734690636592,-153.0,0.00016842,2]
[346069743,1734690636601,-153.0,0.00016842,2]
[346069744,1734690636610,-153.0,0.00016842,2]
[346069745,1734690636620,-153.0,0.00016842,2]
[346069746,1734690636629,-153.0,0.00016842,2]
[346069747,1734690636642,-153.0,0.00016842,2]
[346069748,1734690636657,-153.0,0.00016842,2]
[346069749,1734690636666,-153.0,0.00016842,2]
[346069750,1734690636676,-153.0,0.00016842,2]
[346069751,1734690636687,-153.0,0.00016842,2]
[346069752,1734690636696,-153.0,0.00016842,2]
[346069753,1734690636706,-153.0,0.00016842,2]
[346069754,1734690636716,-153.0,0.00016842,2]
[346069755,1734690636726,-153.0,0.00016842,2]
[346069756,1734690636735,-153.0,0.00016842,2]
[346069757,1734690636745,-153.0,0.00016842,2]
[346069758,1734690636754,-153.0,0.00016842,2]
[346069759,1734690636764,-153.0,0.00016842,2]
[346069760,1734690636774,-153.0,0.00016842,2]
[346069761,1734690636783,-153.0,0.00016842,2]
[346069762,1734690636793,-153.0,0.00016842,2]
[346069763,1734690636802,-153.0,0.00016842,2]
[346069764,1734690636812,-153.0,0.00016842,2]
[346069765,1734690636821,-153.0,0.00016842,2]
[346069766,1734690636831,-153.0,0.00016842,2]
[346069767,1734690636841,-153.0,0.00016842,2]
[346069768,1734690636850,-153.0,0.00016842,2]
[346069769,1734690636860,-153.0,0.00016842,2]
[346069770,1734690636869,-153.0,0.00016842,2]
[346069771,1734690636879,-153.0,0.00016842,2]
[346069772,1734690636888,-153.0,0.00016842,2]
[346069773,1734690636898,-153.0,0.00016842,2]
[346069774,1734690636915,-153.0,0.00016842,2]
[346069775,1734690636924,-153.0,0.00016842,2]
[346069776,1734690636933,-153.0,0.00016842,2]
[346069777,1734690636943,-240.41,0.00016895,2]
[346069778,1734690636952,-159.68448847,0.000169,2]
[346069779,1734690636963,-166.94,0.00016937,2]
[346069780,1734690636973,-1261.11,0.00016943,2]
[346069781,1734690636983,-1921.13,0.00016982,2]
[346069782,1734690636992,-550.0,0.00017,2]
[346069783,1734690637001,-436.8,0.00017205,2]
[346069784,1734690637012,-770.21,0.00017205,2]
[346069785,1734690637021,-300.0,0.00017208,2]
[346069786,1734690637031,-9794.66914246,0.00017607,2]
[346069787,1734690637040,-5000.0,0.00017607,2]
[346069788,1734690637049,-205.79,0.00017714,2]
[346069789,1734690637059,-1921.13,0.0001772,2]
[346069790,1734690637068,-1170.0,0.00017727,2]
[346069791,1734690637078,-1035.36,0.00017851,2]
[346069792,1734690637087,-9081.27919488,0.000179,2]
[346069793,1734690637097,-37349.0584743,0.00018,2]
[346069794,1734690637110,-12650.9415257,0.00018,2]
[346069795,1734690637119,-2774.43996587,0.00018,2]
[346069796,1734690637128,-3000.0,0.00018,2]
[346069797,1734690637137,-168.17,0.00018057,2]
[346069798,1734690637146,-4512.0,0.000181,2]
[346069799,1734690637161,-9081.27919484,0.00018335,2]
[346069800,1734690637171,-1000.0,0.00018366,2]
[346069801,1734690637180,-5562.0,0.000185,3]
[346069802,1734690637189,-150.0,0.00018582,2]
[346069803,1734690637199,-150.0,0.00018613,2]
[346069804,1734690637209,-9081.27919484,0.0001877,2]
[346069805,1734690637218,-216.12463699,0.00018797,2]
[346069806,1734690637227,-266.75794402,0.000188,2]
[346069807,1734690637237,-150.0,0.000188,2]
[346069808,1734690637246,-151.0,0.00018897,2]
[346069809,1734690637255,-150.0,0.000189,2]
[346069810,1734690637264,-1093.048,0.00018927,2]
[346069811,1734690637273,-3885.0,0.00018927,2]
[346069812,1734690637282,-150.0,0.00018927,2]
[346069813,1734690637292,-13648.802,0.00018927,2]
[346069814,1734690637301,-151.0,0.00018927,2]
[346069815,1734690637310,-151.0,0.00018927,2]
[346069816,1734690637320,-151.0,0.00018927,2]
[346069817,1734690637329,-588.697602,0.00018927,2]
[346069818,1734690637338,-588.697602,0.00018927,2]
[346069819,1734690637348,-151.0,0.00018927,2]
[346069820,1734690637357,-151.0,0.00018927,2]
[346069821,1734690637367,-500.0,0.00018972,2]
[346069822,1734690637376,-1200.0,0.00018972,2]
[346069823,1734690637387,-151.0,0.00018997,2]
[346069824,1734690637396,-600.0,0.00019,2]
[346069825,1734690637408,-5562.0,0.00019,5]
[346069826,1734690637418,-150.0,0.00019012,2]
[346069827,1734690637427,-151.0,0.00019097,2]
[346069828,1734690637436,-150.0,0.00019177,2]
[346069829,1734690637446,-4000.0,0.00019178,2]
[346069830,1734690637455,-1000.0,0.00019178,2]
[346069831,1734690637464,-1000.0,0.00019178,2]
[346069832,1734690637473,-1000.0,0.00019178,2]
[346069833,1734690637483,-1000.0,0.00019178,2]
[346069834,1734690637494,-1000.0,0.00019178,2]
[346069835,1734690637504,-1000.0,0.00019178,2]
[346069836,1734690637514,-1000.0,0.00019178,2]
[346069837,1734690637524,-1000.0,0.00019178,2]
[346069838,1734690637533,-1000.0,0.00019178,2]
[346069839,1734690637543,-723.0,0.00019178,2]
[346069840,1734690637553,-1518.95,0.00019178,2]
[346069841,1734690637562,-151.0,0.00019197,2]
[346069842,1734690637571,-152.59,0.00019198,2]
[346069843,1734690637581,-9081.27919484,0.00019206,2]
[346069844,1734690637590,-1261.11,0.00019207,2]
[346069845,1734690637600,-150.0,0.00019224,2]
[346069846,1734690637609,-151.0,0.00019297,2]
[346069847,1734690637619,-1399.2,0.00019316,2]
[346069848,1734690637630,-180.82621743,0.00019334,2]
[346069849,1734690637640,-150.0,0.00019345,2]
[346069850,1734690637649,-1678.83576232,0.00019394,2]
[346069851,1734690637682,-2014.33178129,0.00019394,2]
[346069852,1734690637694,-2906.04992196,0.00019394,2]
[346069853,1734690637706,-150.0,0.00019416,2]
[346069854,1734690637716,-1500.0,0.00019498,2]
[346069855,1734690637725,-150.0,0.00019507,2]
[346069856,1734690637734,-150.0,0.00019509,2]
[346069857,1734690637744,-150.0,0.00019521,2]
[346069858,1734690637753,-1521.63169284,0.0001953,2]
[346069859,1734690637763,-70.48357966,0.00019637,2]
[346069860,1734690637775,-594.14,0.00019637,2]
[346069861,1734690637787,-370.73642034,0.00019637,2]
[346069862,1734690637797,-105.63108657,0.00019641,2]
[346069863,1734690637808,-317.45865681,0.00019641,2]
[346069864,1734690637842,-6400.0,0.00019641,2]
[346069865,1734690637853,-1136.3352,0.00019641,2]
[346069866,1734690637865,-1121.85425146,0.00019641,2]
[346069867,1734690637875,-150.0,0.00019665,2]
[346069868,1734690637885,-150.0,0.00019716,2]
[346069869,1734690637894,-150.0,0.00019719,2]
[346069870,1734690637907,-150.0,0.00019749,2]
[346069871,1734690637916,-1508.27779841,0.00019786,2]
[346069872,1734690637926,-166.77,0.00019821,2]
[346069873,1734690637935,-150.0,0.00019847,2]
[346069874,1734690637944,-324.70159791,0.000199,2]
[346069875,1734690637955,-150.0,0.00019938,2]
[346069876,1734690637966,-151.0,0.0001998,2]
[346069877,1734690637975,-151.0,0.0001998,2]
[346069878,1734690637985,-155.159903,0.0001998,2]
[346069879,1734690637994,-5216.9945987,0.0001998,2]
[346069881,1734690638006,-261.48352642,0.0001998,2]
[346069884,1734690638018,-47583.07320008,0.0001998,2]
[346069890,1734690638040,-423.96152433,0.0001998,2]
[346069893,1734690638051,-47630.62996947,0.0001998,2]
[346069896,1734690638061,-150.0,0.0001999,2]
[346069899,1734690638071,-500.0,0.00019999,2]
[346069902,1734690638080,-577.31374489,0.00019999,2]
[346069905,1734690638090,-3000.0,0.0002,2]
[346069907,1734690638100,-1103.1071793,0.0002,2]
[346069908,1734690638109,-44262.4409291,0.0002,2]
[346069909,1734690638118,-38603.75307724,0.0002,2]
[346069910,1734690638130,-14837.16153712,0.0002,2]
[346069911,1734690638295,-150.20109762,0.0002,2]
[346069912,1734690638697,-9064.82850173,0.0002,2]
[346069913,1734690638714,-391.46660012,0.0002,2]
[346069914,1734690638809,-4758.8980466,0.0002,2]
[346069915,1734690638818,-24999.999998,0.0002,2]
[346069916,1734690638828,-151.0,0.0002,2]
[346069917,1734690638837,-151.0,0.0002,2]
[346069918,1734690638846,-3068.64985306,0.0002,2]
[346069919,1734690638858,-12833.72142545,0.0002,2]
[346069920,1734690638868,-150.0,0.00020004,2]
[346069921,1734690638877,-150.0,0.00020033,2]
[346069922,1734690638887,-500.0,0.00020068,2]
[346069923,1734690638896,-1200.0,0.00020068,2]
[346069924,1734690638908,-500.0,0.00020068,2]
[346069925,1734690638917,-1689.04,0.00020073,2]
[346069926,1734690638927,-683.24,0.00020073,2]
[346069927,1734690638936,-6735.15620699,0.00020076,2]
[346069928,1734690638949,-2346.12298785,0.00020076,2]
[346069929,1734690638958,-240.41,0.00020091,2]
[346069930,1734690638967,-1500.0,0.00020097,2]
[346069931,1734690638977,-150.0,0.00020133,2]
[346069932,1734690638986,-300.0,0.00020181,2]
[346069933,1734690638995,-1500.0,0.00020183,2]
[346069934,1734690639004,-223.86705798,0.00020188,2]
[346069935,1734690639015,-1000.0,0.00020202,2]
[346069936,1734690639025,-2783.96,0.00020204,2]
[346069937,1734690639034,-150.0,0.00020293,2]
[346069938,1734690639043,-150.0,0.00020294,2]
[346069939,1734690639052,-150.0,0.00020298,2]
[346069940,1734690639061,-150.0,0.00020321,2]
[346069941,1734690639071,-150.0,0.00020362,2]
[346069942,1734690639080,-150.0,0.00020376,2]
[346069943,1734690639089,-150.0,0.0002038,2]
[346069944,1734690639098,-150.0,0.00020441,2]
[346069945,1734690639107,-150.0,0.00020466,2]
[346069946,1734690639116,-150.0,0.00020474,2]
[346069947,1734690639125,-1500.0,0.0002049,2]
[346069948,1734690639134,-150.0,0.00020497,2]
[346069949,1734690639143,-1500.0,0.00020497,2]
[346069950,1734690639152,-9081.27919484,0.00020511,2]